Cogmind - Beta 12 @@@ ROGUE MODE // 2024.02.23 @ 23:59:33 Player: Mombamambo Result: Self-destructed Performance ------------- Evolutions (1) 500 Regions Visited (3) 600 Robots Destroyed (9) 45 Value Destroyed (272) 272 Prototype IDs (0) 0 Alien Tech Used (0) 0 Bonus (0) 0 TOTAL SCORE: 1417 Bonus ------- None Cogmind --------- Core Integrity 266/400 Matter 84/300 Energy 193/250 System Corruption 0% Temperature Danger (430) Movement Rolling (90) Location -9/Materials Parts ------- > --- POWER (1) -------- (None) > --- PROPULSION (2) --- Armored Wheel Armored Wheel > --- UTILITY (4) ------ Medium Battery Signal Interpreter > --- WEAPON (2) ------- Particle Gun Particle Gun > --- INVENTORY (5) ---- Light Treads Particle Gun Particle Gun Grenade Launcher Rocket Launcher Peak State ------------ > --- POWER ------------ Light Ion Engine > --- PROPULSION ------- Armored Wheel Armored Wheel > --- UTILITY ---------- Medium Battery Signal Interpreter > --- WEAPON ----------- Particle Gun Rocket Launcher > --- INVENTORY -------- Light Treads Grenade Launcher [Rating: 11] Favorites ----------- Power Light Ion Engine Engine Light Ion Engine Propulsion Wheel Wheel Wheel Utility Medium Battery Storage Medium Battery Processor Signal Interpreter Weapon Assault Rifle Energy Gun Particle Gun Ballistic Gun Assault Rifle Launcher Grenade Launcher Build | -11 -10 -10 -9 ------- Run | Jun Mat Min Mat Slots Evolved 2 | . . . 2 Power . | . . . . Propulsion . | . . . . Utility 2 | . . . 2 Weapon . | . . . . Parts Attached 12 | 3 4 1 4 Power 1 | . 1 . . Engine 1 | . 1 . . Core . | . . . . Reactor . | . . . . Propulsion 4 | 2 . . 2 Treads . | . . . . Leg . | . . . . Wheel 4 | 2 . . 2 Hover . | . . . . Flight . | . . . . Utility 2 | . 2 . . Device . | . . . . Storage 1 | . 1 . . Processor 1 | . 1 . . Hackware . | . . . . Protection . | . . . . Artifact . | . . . . Weapon 5 | 1 1 1 2 Energy Gun 2 | . . . 2 Energy Cannon . | . . . . Ballistic Gun 1 | 1 . . . Ballistic Cannon . | . . . . Launcher 2 | . 1 1 . Special Weapon . | . . . . Impact Weapon . | . . . . Slashing Weapon . | . . . . Piercing Weapon . | . . . . Special Melee Weapon . | . . . . Unidentified Prototypes . | . . . . Parts Lost 1 | . . . 1 Power 1 | . . . 1 Propulsion . | . . . . Utility . | . . . . Weapon . | . . . . Highest Loss Streak 1 | . . . 1 To Critical Strikes . | . . . . Average Slot Usage (%) 75 | . 63 100 75 Engine 6 | . 1 14 10 Wheel 26 | . 28 28 21 Storage 10 | . 7 14 11 Processor 8 | . 5 14 11 Energy Gun 3 | . . . 12 Ballistic Gun 10 | . 14 14 3 Launcher 8 | . 6 14 7 Naked Turns . | . . . . Heaviest Build 12 | 2 10 11 12 Greatest Support 24 | 20 20 20 24 Greatest Overweight (x) . | . . . . Average Overweight (x) . | . . . . Largest Inventory Capacity 5 | 5 5 5 5 Average Capacity 5 | 5 5 5 5 Most Carried 5 | 2 1 2 5 Average Carried 1 | . 1 1 4 Final Capacity 5 | 5 5 5 5 Final Carried 5 | 1 1 2 5 Class Distribution -------------------- 100% | Mutant Dominant Class ---------------- Mutant | -10/Materials Mutant | -10/Mines Mutant | -9/Materials Resources | -11 -10 -10 -9 ----------- Run | Jun Mat Min Mat Matter Collected 184 | 161 23 . . Remotely . | . . . . Salvage Created 224 | . 77 . 147 Parts 22 | . 10 . 12 Haulers Intercepted . | . . . . Recyclers Shooed . | . . . . Parts Field Recycled . | . . . . Retrieved Matter . | . . . . Parts Self-Destructed . | . . . . Prevented . | . . . . Kills | -11 -10 -10 -9 ------- Run | Jun Mat Min Mat Combat Hostiles Destroyed 6 | . 2 . 4 Guns 4 | . . . 4 AOE 2 | . 2 . . Classes Destroyed 4 | . 3 . 1 Worker 1 | . 1 . . Builder 1 | . 1 . . Watcher 1 | . . . 1 Grunt 6 | . 2 . 4 Best Kill Streak 4 | . 4 . 4 Combat Bots Only 4 | . 2 . 4 Max Kills in Single Turn 3 | . 3 . 1 Gunslinging . | . . . . Exploded 2 | . 2 . . Melee . | . . . . Uniques/NPCs Destroyed . | . . . . Combat | -11 -10 -10 -9 -------- Run | Jun Mat Min Mat Damage Taken 412 | . 23 . 389 Core 137 | . 3 . 134 Absorbed by Shields . | . . . . Core Remaining (%) 99 | 100 . 98 . Volleys Fired 17 | . 8 . 9 Largest 2 | . 2 . 2 Hottest 130 | . 50 . 130 Shots Fired 31 | . 13 . 18 Gun 25 | . 8 . 17 Cannon . | . . . . Launcher 6 | . 5 . 1 Special . | . . . . Kinetic 8 | . 8 . . Thermal 17 | . . . 17 Explosive 6 | . 5 . 1 Electromagnetic . | . . . . Robot Hit Streak 5 | . 3 . 5 Robot Miss Streak 3 | . 3 . 2 Penetration Max . | . . . . Secondary Targets 1 | . . . 1 Max Gunslinging Chain 1 | . . . 1 Shots Hit Robots 18 | . 7 . 11 Core Hits 13 | . 6 . 7 Critical Kills . | . . . . Critical Parts Destroyed . | . . . . Critical Strikes 2 | . . . 2 Burn 2 | . . . 2 Melee Attacks . | . . . . Impact . | . . . . Slashing . | . . . . Piercing . | . . . . Sneak Attacks . | . . . . Combat Hostiles . | . . . . Follow-up Attacks . | . . . . Damage Inflicted 499 | . 322 . 177 Guns 223 | . 53 . 170 Cannons . | . . . . Explosions 276 | . 269 . 7 Melee . | . . . . Ramming . | . . . . Kinetic 53 | . 53 . . Thermal 170 | . . . 170 Explosive 276 | . 269 . 7 Electromagnetic . | . . . . Impact . | . . . . Slashing . | . . . . Piercing . | . . . . Highest Corruption . | . . . . Average Corruption . | . . . . Corruption Purged . | . . . . Corruption Blocked . | . . . . Overload Shots . | . . . . Overflow Damage 4 | . 4 . . Projectiles . | . . . . Explosions 4 | . 4 . . Melee . | . . . . Knockbacks . | . . . . Impact . | . . . . Kinetic . | . . . . Secondary . | . . . . Self-Inflicted Damage 9 | . 9 . . Shots 1 | . 1 . . Rammed . | . . . . Targets Rammed . | . . . . Kicked . | . . . . Crushed . | . . . . Highest Temperature 471 | . . . 471 Average Temperature 201 | . . . 201 Received Heat Transfer 192 | . 9 . 183 Effects 2 | . . . 2 Energy Bleed 1 | . . . 1 Damage (minor) 1 | . . . 1 Siege Activations . | . . . . Robots Corrupted . | . . . . Combat Hostiles . | . . . . Parts Fried . | . . . . Impact Corruptions . | . . . . Robots Melted . | . . . . Combat Hostiles . | . . . . Parts Melted 2 | . . . 2 Heat Transferred 555 | . . . 555 Parts Sabotaged . | . . . . Parts Stolen . | . . . . Parts Stripped . | . . . . Power Chain Reactions . | . . . . Missiles Intercepted . | . . . . Alert | -11 -10 -10 -9 ------- Run | Jun Mat Min Mat Peak Influence 158 | . 123 47 158 Initial 47 | . . 47 18 Average 35 | . 27 47 48 Maximum Alert Level . | . . . . Low Security (%) 100 | 100 100 100 100 Level 1 . | . . . . Level 2 . | . . . . Level 3 . | . . . . Level 4 . | . . . . Level 5 . | . . . . High Security . | . . . . Max Security . | . . . . Squads Dispatched 1 | . . . 1 Investigation . | . . . . Extermination . | . . . . Reinforcement 1 | . . . 1 Assault . | . . . . Garrison . | . . . . Intercept . | . . . . Searches Triggered . | . . . . Construction Impeded . | . . . . Haulers Reinforced . | . . . . Active Scanning Responses . | . . . . Cargo Convoy Interrupts . | . . . . Stealth | -11 -10 -10 -9 --------- Run | Jun Mat Min Mat Distress Signals 4 | . 1 . 3 Communications Jammed . | . . . . Distress Signals . | . . . . Times Spotted 13 | . 3 . 10 Peak Tracking Total 7 | . 3 . 7 Tactical Retreats . | . . . . Traps | -11 -10 -10 -9 ------- Run | Jun Mat Min Mat Traps Triggered . | . . . . Indirectly . | . . . . Trap Hack Attempts . | . . . . Triggered . | . . . . Disarmed . | . . . . Reprogrammed . | . . . . Reused . | . . . . Traps Extracted . | . . . . Installed . | . . . . Triggered . | . . . . Machines | -11 -10 -10 -9 ---------- Run | Jun Mat Min Mat Machines Disabled 2 | . 1 . 1 Max in Single Turn 1 | . 1 . 1 Machines Repaired . | . . . . Machines Sabotaged . | . . . . Overloaded Fab Kills . | . . . . Hacking | -11 -10 -10 -9 --------- Run | Jun Mat Min Mat Machines Accessed 1 | . 1 . . Terminals 1 | . 1 . . Fabricators . | . . . . Repair Stations . | . . . . Recycling Units . | . . . . Scanalyzers . | . . . . Garrison Access . | . . . . Total Hacks 4 | . 4 . . Successful 3 | . 3 . . Failed 1 | . 1 . . Catastrophic . | . . . . Database Lockouts . | . . . . Manual . | . . . . Terminals 4 | . 4 . . Fabricators . | . . . . Repair Stations . | . . . . Recycling Units . | . . . . Scanalyzers . | . . . . Garrison Access . | . . . . Terminal Hacks 3 | . 3 . . Record 1 | . 1 . . Locate Traps 1 | . 1 . . Hauler Manifests 1 | . 1 . . Fabricator Hacks . | . . . . Repair Station Hacks . | . . . . Recycling Unit Hacks . | . . . . Scanalyzer . | . . . . Garrison Access Hacks . | . . . . Unauthorized Hacks . | . . . . Terminals . | . . . . Fabricators . | . . . . Repair Stations . | . . . . Recycling Units . | . . . . Scanalyzers . | . . . . Garrison Access . | . . . . Data Cores Recovered . | . . . . Used . | . . . . Hacking Detections 1 | . 1 . . Full Trace Events . | . . . . Feedback Events . | . . . . Feedback Blocked . | . . . . Robot Schematics Acquired . | . . . . Robots Built . | . . . . Authchips . | . . . . Time . | . . . . Total Robot Build Rating . | . . . . Part Schematics Acquired . | . . . . Parts Built . | . . . . Authchips . | . . . . Time . | . . . . Total Part Build Rating . | . . . . Parts Repaired . | . . . . Time . | . . . . Parts Recycled . | . . . . Recycled Matter . | . . . . Retrieved Matter . | . . . . Retrieved Components . | . . . . Parts Scanalyzed . | . . . . Part Schematics Acquired . | . . . . Parts Damaged . | . . . . Bothacking | -11 -10 -10 -9 ------------ Run | Jun Mat Min Mat Used RIF Installer . | . . . . Robots Hacked . | . . . . Non-combat . | . . . . Combat . | . . . . Robot Hacks Applied . | . . . . Relay Couplers Released . | . . . . Fabnet Peak Effective % . | . . . . Robots Rewired . | . . . . Allies Hacked . | . . . . Hacks Repelled . | . . . . Allies | -11 -10 -10 -9 -------- Run | Jun Mat Min Mat Total Allies . | . . . . Largest Group . | . . . . Highest-Rated Group . | . . . . Highest-Rated Ally . | . . . . Total Orders . | . . . . Ally Attacks . | . . . . Total Damage . | . . . . Kills . | . . . . Allies Corrupted . | . . . . Allies Melted . | . . . . Intel | -11 -10 -10 -9 ------- Run | Jun Mat Min Mat Robot Analysis Total . | . . . . Derelict Logs Recovered 1 | . . 1 . Drone Launches . | . . . . Drone Recoveries . | . . . . Exploration | -11 -10 -10 -9 ------------- Run | Jun Mat Min Mat Turns Passed 428 | 25 192 96 115 Spaces Moved 328 | 25 99 119 85 Core 3 | 3 . . . Treads . | . . . . Legs . | . . . . Wheels 325 | 22 99 119 85 Hover . | . . . . Flight . | . . . . Fastest Speed 50 | 50 80 80 80 Average Speed 81 | 76 80 80 86 Slowest Speed 90 | 80 80 80 90 Overloaded Moves . | . . . . Propulsion Burnouts . | . . . . Robots Hopped . | . . . . Cave-ins Triggered . | . . . . Exploration Rate (%) 18 | 4 21 36 13 Regions Visited 3 Branch Regions 1 Pre-discovered Areas . | . . . . Known Exits Taken 2 | . 1 1 . Unknown Exits Taken 1 | 1 . . . Scrap Searched . | . . . . Spaces Dug . | . . . . Terrain Destroyed 37 | . 30 . 7 Melee . | . . . . Projectile . | . . . . AOE 37 | . 30 . 7 Terrain Rammed . | . . . . Walls Destroyed . | . . . . Machines Disabled . | . . . . Actions | -11 -10 -10 -9 --------- Run | Jun Mat Min Mat Total 451 | 29 196 119 107 Wait 89 | . 86 . 3 Move 325 | 24 98 118 85 Hop . | . . . . Pick Up 5 | 2 . . 3 Fast Attach 9 | 2 4 . 3 Attach 1 | 1 . . . Detach . | . . . . Swap 2 | . . 1 1 Drop 3 | . . . 3 Fire 17 | . 8 . 9 Melee . | . . . . Ram . | . . . . Kick . | . . . . Crush . | . . . . Escape Stasis . | . . . . Rewire . | . . . . Trap . | . . . . Miscellaneous . | . . . . Route ------- -11/Junkyard -10/Materials -10/Mines -9/Materials (discovered 1 exit: Mat) History --------- Turn | Location | Event 9 | -11/Junkyard | Discovered new exit (range 16) 26 | -11/Junkyard | Entered Materials 159 | -10/Materials | Discovered new exit (range 13) 215 | -10/Materials | Identified exit to Mines 218 | -10/Materials | Entered Mines 288 | -10/Mines | Learned location of 1 exit from Materials 288 | -10/Mines | Discovered new exit (range 7) 295 | -10/Mines | Identified exit to Materials 302 | -10/Mines | Received a Rocket Launcher from a helpful Derelict 314 | -10/Mines | Entered Materials 314 | -9/Materials | Evolved 2 slots: Utility x2 315 | -9/Materials | Identified exit to Materials 324 | -9/Materials | Build established: Mutant 429 | -9/Materials | Self-destructed Last Messages --------------- 00379_ W-16 Scout destroyed. 00379_ Terminal disabled. 00389_ U-05 Engineer lays Concrete. 00405_ G-34 Mercenary suffers critical hit (Burn). 00408_ Aluminum Leg melted. 00408_ G-34 Mercenary destroyed. 00408_ Switching to secondary target: G-47 Trooper. 00411_ G-47 Trooper suffers critical hit (Burn). 00413_ Lgt. Ion Engine destroyed. 00413_ Critical hit (Burn: +37). 00415_ Imp. Heat Sink melted. 00415_ G-47 Trooper destroyed. 00418_ G-34 Mercenary destroyed. 00419_ W-16 Scout sends out distress signal. 00420_ O-16 Technician: "IFF HANDSHAKE FAILED. SECURING TERMINAL." 00422_ ALERT: Hostiles spotted, dispatching reinforcements to Terminal M005. 00424_ G-34 Mercenary destroyed. 00426_ Overheating: Signal Interpreter damaged (-7). 00427_ Overheating: Energy bleed (-43). Map ----- +----------------------------------------------------+ | ?????????????????????????????????????????????????? | | ?????????????????????????????????????????????????? | | ?????????????????????????????????????????????????? | | ?????????????????????????????????????????????????? | | ?????????????????????????????????????????????????? | | ?????????????????????????????????????????????????? | | ?????????????????????????????????????????????????? | | ?????????????????????????????????????????????????? | | ??????????????????????? ???????????????????????? | | ?????????????????????? ?????????????????????## | | ?????????????????????? ?????????????????????# | | ??????????????????????# #?????????????????????# | | ??????????????????????# #?????????????????????# | | ??????????????????????# ############+########## | | ??????????????????????# * = | | ??????????????????????# %[%= | | ??????????????????????# = * | | ??????????????????????# % #######+########### | | ??????????????????????# #??# #?????? | | ??????????????????????# #??# #?????? | | ????????? ############# #??# #?????? | | ???????? #??# [ =#?????? | | ???????? #### [ #?????? | | ???????? % + [ #?????? | | ???????????????##+######+######## # #?????? | | ?????????????????????# ==@ #???# # #?????? | | ?????????????????????# Y"""#???# # #?????? | | ?????????????????????# """#???# ##########?????? | | ?????????????????????#= """#???# #??????????????? | | ?????????????????????# #???# #??????????????? | | ?????????????????????# #???# #??????????????? | | ?????????????????########+####### #??????????????? | | ?????????? #??????????????? | | ?????????????????############# #??????????????? | | ?????????????????????????????# #??????????????? | | ?????????????????????????????# #??????????????? | | ?????????????????????????????# #??????????????? | | ?????????????????????????????# ?????????????? | | ?????????????????????????????# ! ????????????? | | ?????????????????????????????#=%! ???????????? | | ?????????????????????????????# ! """??????????? | | ?????????????????????????????# " """ ?????????? | | ?????????????????????????????# T """ ????????? | | ????????????????????????????? ??????????? | | ????????????????????????????? ???????????? | | ????????????????????????????? ???????????? | | ????????????????????????????? ???????????? | | ????????????????????????????? # ??????????? | | ????????????????????????????? ] ?? ?????????????? | | ????????????????????????????? ?????????????????? | +----------------------------------------------------+ Best States ------------- Heat Dissipation 28 Energy Generation 10 Energy Capacity 275 Matter Stores 231 Matter Capacity 300 Sight Range 16 Terrain Scan Density 10 Evasion (%) 44 Item Schematics ----------------- None Robot Schematics ------------------ None Fabricated ------------ Nothing Alien Tech Used ----------------- None Achievements -------------- None Challenges ------------ None Game ------ Seed BiomechanicalFlyingWarhead Manual? 0 Play Time 00:09:41 Cumulative 45.7 hours Start 2024.02.23 @ 23:36:58 End 2024.02.23 @ 23:59:33 Sessions 1 Manual Loads 0 Difficulty Rogue Special Mode None Game No. 36 Rogue 36 Adventurer 0 Explorer 0 Win Type - Total 0 Types 0/0/0/0/0/0/0/0/0 Lore% 37 Gallery% 49 Achievement% 36 Wizard Run 0 Options --------- ASCII 0 Keyboard 0 Movement Mouse Keybinds 0 Fullscreen 1 Font 18/SmallcapsGlow Map View 76x50 Tactical HUD 1 Map Filters NONE Filters NONE Steam 1 RUN: 604a1a17-0a4d-41bf-8bf4-06158cbb2abc